fUST/lending_fUST_20250206
["ID","MTS","AMOUNT","RATE_DAILY","PERIOD"]
[351935546,1738851045003,-868.38,0.00013972,2]
[351935547,1738851045014,-500.0,0.00013972,2]
[351935548,1738851045024,-500.0,0.00013972,2]
[351935549,1738851045035,-500.0,0.00013972,2]
[351935550,1738851045044,-500.0,0.00013972,2]
[351935551,1738851045054,-775.95,0.00013972,2]
[351935552,1738851045064,-210.41962728,0.00013972,2]
[351935553,1738851045074,-500.0,0.00013972,2]
[351935554,1738851045084,-614.51,0.00013972,2]
[351935555,1738851045093,-500.0,0.00013972,2]
[351935556,1738851045103,-500.0,0.00013972,2]
[351935557,1738851045113,-538.7,0.00013972,2]
[351935558,1738851045123,-327.28588589,0.00013972,2]
[351935559,1738851045133,-500.0,0.00013972,2]
[351935560,1738851045143,-500.0,0.00013972,2]
[351935561,1738851045153,-500.0,0.00013972,2]
[351935562,1738851045163,-151.0,0.00013972,2]
[351935563,1738851045173,-500.0,0.00013972,2]
[351935564,1738851045183,-500.0,0.00013972,2]
[351935565,1738851045193,-884.55,0.00013972,2]
[351935566,1738851045202,-163.49685421,0.00013972,2]
[351935567,1738851045212,-500.0,0.00013972,2]
[351935568,1738851045221,-502.09160468,0.00013972,2]
[351935569,1738851045231,-500.0,0.00013972,2]
[351935570,1738851045240,-500.0,0.00013972,2]
[351935571,1738851045250,-1182.74,0.00013972,2]
[351935572,1738851045259,-500.0,0.00013972,2]
[351935573,1738851045269,-500.0,0.00013972,2]
[351935574,1738851045279,-500.0,0.00013972,2]
[351935575,1738851045288,-500.0,0.00013972,2]
[351935576,1738851045298,-151.917224,0.00013972,2]
[351935577,1738851045307,-500.0,0.00013972,2]
[351935578,1738851045317,-151.917224,0.00013972,2]
[351935579,1738851045326,-500.0,0.00013972,2]
[351935580,1738851045336,-151.0,0.00013972,2]
[351935581,1738851045345,-500.0,0.00013972,2]
[351935582,1738851045355,-500.0,0.00013972,2]
[351935583,1738851045364,-500.0,0.00013972,2]
[351935584,1738851045374,-438.19380035,0.00013972,2]
[351935585,1738851045383,-500.0,0.00013972,2]
[351935586,1738851045393,-151.0,0.00013972,2]
[351935587,1738851045402,-613.35121028,0.00013972,2]
[351935588,1738851045412,-151.0,0.00013972,2]
[351935589,1738851045421,-500.0,0.00013972,2]
[351935590,1738851045431,-500.0,0.00013972,2]
[351935591,1738851045440,-500.0,0.00013972,2]
[351935592,1738851045450,-540.58338602,0.00013972,2]
[351935593,1738851045459,-306.36551695,0.00013972,2]
[351935594,1738851045469,-621.75,0.00013972,2]
[351935595,1738851045478,-1597.37,0.00013972,2]
[351935596,1738851045487,-151.0,0.00013972,2]
[351935597,1738851045497,-1708.57,0.00013972,2]
[351935598,1738851045507,-500.0,0.00013972,2]
[351935599,1738851045516,-540.86,0.00013972,2]
[351935600,1738851045525,-500.0,0.00013972,2]
[351935601,1738851045535,-500.0,0.00013972,2]
[351935603,1738851045544,-151.0,0.00013972,2]
[351935604,1738851045553,-151.0,0.00013972,2]
[351935605,1738851045563,-500.0,0.00013972,2]
[351935607,1738851045572,-151.0,0.00013972,2]
[351935608,1738851045581,-500.0,0.00013972,2]
[351935609,1738851045591,-500.0,0.00013972,2]
[351935610,1738851045600,-550.24,0.00013972,2]
[351935611,1738851045609,-151.0,0.00013972,2]
[351935612,1738851045619,-500.0,0.00013972,2]
[351935613,1738851045628,-500.0,0.00013972,2]
[351935614,1738851045638,-151.0,0.00013972,2]
[351935615,1738851045647,-1027.071389,0.00013972,2]
[351935616,1738851045656,-500.0,0.00013972,2]
[351935617,1738851045666,-1027.071389,0.00013972,2]
[351935618,1738851045676,-1191.99,0.00013972,2]
[351935621,1738851045833,-500.0,0.00013972,2]
[351935622,1738851045844,-787.55,0.00013972,2]
[351935623,1738851045854,-4473.78,0.00013972,2]
[351935624,1738851045863,-151.0,0.00013972,2]
[351935625,1738851045873,-961.53,0.00013972,2]
[351935626,1738851045883,-151.0,0.00013972,2]
[351935627,1738851045893,-500.0,0.00013972,2]
[351935628,1738851045903,-151.0,0.00013972,2]
[351935629,1738851045912,-1808.26,0.00013972,2]
[351935630,1738851045921,-1407.66,0.00013972,2]
[351935631,1738851045931,-796.22,0.00013972,2]
[351935632,1738851045941,-151.74422,0.00013972,2]
[351935633,1738851045950,-151.0,0.00013972,2]
[351935634,1738851045965,-151.0,0.00013972,2]
[351935635,1738851045975,-169.76055,0.00013972,2]
[351935637,1738851045985,-942.47,0.00013972,2]
[351935638,1738851045997,-500.0,0.00013972,2]
[351935639,1738851046006,-517.54206974,0.00013972,2]
[351935640,1738851046015,-637.05,0.00013972,2]
[351935642,1738851046025,-512.207558,0.00013972,2]
[351935644,1738851046035,-3347.65,0.00013972,2]
[351935645,1738851046044,-500.0,0.00013972,2]
[351935646,1738851046053,-500.0,0.00013972,2]
[351935647,1738851046063,-512.207558,0.00013972,2]
[351935648,1738851046072,-1987.36,0.00013972,2]
[351935649,1738851046082,-500.0,0.00013972,2]
[351935650,1738851046091,-167.889512,0.00013972,2]
[351935651,1738851046101,-826.82,0.00013972,2]
[351935652,1738851046110,-500.0,0.00013972,2]
[351935653,1738851046120,-500.0,0.00013972,2]
[351935654,1738851046130,-234.389468,0.00013972,2]
[351935655,1738851046139,-833.85,0.00013972,2]
[351935656,1738851046149,-234.389468,0.00013972,2]
[351935657,1738851046159,-3687.18,0.00013972,2]
[351935658,1738851046168,-550.0,0.00013972,2]
[351935659,1738851046177,-500.0,0.00013972,2]
[351935660,1738851046187,-1535.57,0.00013972,2]
[351935661,1738851046196,-500.0,0.00013972,2]
[351935662,1738851046206,-922.33,0.00013972,2]
[351935663,1738851046216,-153.484543,0.00013972,2]
[351935664,1738851046225,-151.0,0.00013972,2]
[351935665,1738851046235,-500.0,0.00013972,2]
[351935666,1738851046244,-500.0,0.00013972,2]
[351935667,1738851046255,-666.57,0.00013972,2]
[351935668,1738851046264,-1015.56,0.00013972,2]
[351935669,1738851046273,-304.28702336,0.00013972,2]
[351935670,1738851046283,-500.0,0.00013972,2]
[351935671,1738851046292,-500.0,0.00013972,2]
[351935672,1738851046301,-1287.38,0.00013972,2]
[351935673,1738851046311,-154.103974,0.00013972,2]
[351935674,1738851046320,-500.0,0.00013972,2]
[351935675,1738851046330,-503.32902953,0.00013972,2]
[351935676,1738851046339,-154.103974,0.00013972,2]
[351935677,1738851046349,-151.0,0.00013972,2]
[351935678,1738851046358,-500.0,0.00013972,2]
[351935679,1738851046367,-500.0,0.00013972,2]
[351935680,1738851046376,-3126.78,0.00013972,2]
[351935681,1738851046386,-283.1535,0.00013972,2]
[351935682,1738851046396,-500.0,0.00013972,2]
[351935683,1738851046405,-500.0,0.00013972,2]
[351935684,1738851046414,-507.76093265,0.00013972,2]
[351935685,1738851046424,-500.0,0.00013972,2]
[351935686,1738851046434,-520.68859544,0.00013972,2]
[351935687,1738851046444,-500.0,0.00013972,2]
[351935688,1738851046453,-6963.41,0.00013972,2]
[351935689,1738851046463,-500.0,0.00013972,2]
[351935690,1738851046472,-265.86682504,0.00013972,2]
[351935691,1738851046482,-1200.01,0.00013972,2]
[351935692,1738851046491,-500.0,0.00013972,2]
[351935693,1738851046501,-500.0,0.00013972,2]
[351935694,1738851046511,-151.0,0.00013972,2]
[351935695,1738851046520,-1065.19,0.00013972,2]
[351935696,1738851046529,-500.0,0.00013972,2]
[351935697,1738851046538,-151.0,0.00013972,2]
[351935698,1738851046548,-1322.58,0.00013972,2]
[351935699,1738851046557,-13982.56,0.00013972,2]
[351935700,1738851046567,-500.0,0.00013972,2]
[351935701,1738851046578,-151.0,0.00013972,2]
[351935702,1738851046587,-5796.15,0.00013972,2]
[351935703,1738851046597,-581.44,0.00013972,2]
[351935704,1738851046606,-500.0,0.00013972,2]
[351935705,1738851046615,-500.0,0.00013972,2]
[351935706,1738851046625,-500.0,0.00013972,2]
[351935707,1738851046634,-500.0,0.00013972,2]
[351935708,1738851046643,-42643.98,0.00013972,2]
[351935709,1738851046653,-500.0,0.00013972,2]
[351935710,1738851046662,-500.0,0.00013972,2]
[351935711,1738851046672,-1206.68,0.00013972,2]
[351935712,1738851046681,-208.65336372,0.00013972,2]
[351935713,1738851046691,-1306.86,0.00013972,2]
[351935714,1738851046699,-1001.84,0.00013972,2]
[351935715,1738851046709,-500.0,0.00013972,2]
[351935716,1738851046719,-4363.28,0.00013972,2]
[351935717,1738851046728,-2468.47,0.00013972,2]
[351935718,1738851046737,-500.0,0.00013972,2]
[351935719,1738851046747,-151.0,0.00013972,2]
[351935720,1738851046756,-500.0,0.00013972,2]
[351935721,1738851046766,-729.89,0.00013972,2]
[351935722,1738851046775,-2320.38,0.00013972,2]
[351935723,1738851046784,-1507.93,0.00013972,2]
[351935724,1738851046794,-500.0,0.00013972,2]
[351935725,1738851046803,-500.0,0.00013972,2]
[351935726,1738851046812,-500.0,0.00013972,2]
[351935727,1738851046821,-1357.54,0.00013972,2]
[351935728,1738851046830,-2135.49,0.00013972,2]
[351935729,1738851046840,-1016.63,0.00013972,2]
[351935730,1738851046849,-500.0,0.00013972,2]
[351935731,1738851046859,-780.62,0.00013972,2]
[351935732,1738851046868,-17470.79,0.00013972,2]
[351935733,1738851046877,-500.0,0.00013972,2]
[351935734,1738851046888,-151.0,0.00013972,2]
[351935735,1738851046897,-500.0,0.00013972,2]
[351935736,1738851046907,-3605.2,0.00013972,2]
[351935737,1738851046916,-151.0,0.00013972,2]
[351935738,1738851046927,-500.0,0.00013972,2]
[351935739,1738851046938,-151.0,0.00013972,2]
[351935740,1738851046948,-199.691131,0.00013972,2]
[351935741,1738851046960,-500.0,0.00013972,2]
[351935742,1738851046971,-500.0,0.00013972,2]
[351935743,1738851046980,-1602.84,0.00013972,2]
[351935744,1738851046990,-966.89,0.00013972,2]
[351935745,1738851047001,-644.09,0.00013972,2]
[351935746,1738851047011,-1755.26,0.00013972,2]
[351935747,1738851047023,-587.49,0.00013972,2]
[351935748,1738851047033,-500.0,0.00013972,2]
[351935749,1738851047043,-3288.75,0.00013972,2]
[351935750,1738851047053,-151.0,0.00013972,2]
[351935751,1738851047063,-1867.6,0.00013972,2]
[351935752,1738851047072,-500.0,0.00013972,2]
[351935753,1738851047082,-565.77,0.00013972,2]
[351935754,1738851047092,-875.81,0.00013972,2]
[351935755,1738851047101,-500.0,0.00013972,2]
[351935756,1738851047111,-793.45,0.00013972,2]
[351935757,1738851047120,-500.0,0.00013972,2]
[351935758,1738851047130,-500.0,0.00013972,2]
[351935759,1738851047140,-9267.35,0.00013972,2]
[351935760,1738851047150,-955.32,0.00013972,2]
[351935761,1738851047159,-500.0,0.00013972,2]
[351935762,1738851047169,-500.0,0.00013972,2]
[351935763,1738851047178,-2160.78,0.00013972,2]
[351935764,1738851047187,-151.0,0.00013972,2]
[351935765,1738851047198,-500.0,0.00013972,2]
[351935766,1738851047207,-151.0,0.00013972,2]
[351935767,1738851047217,-500.0,0.00013972,2]
[351935768,1738851047226,-500.0,0.00013972,2]
[351935769,1738851047235,-1470.7,0.00013972,2]
[351935770,1738851047245,-703.94,0.00013972,2]
[351935771,1738851047255,-500.0,0.00013972,2]
[351935772,1738851047265,-275.443027,0.00013972,2]
[351935773,1738851047274,-500.0,0.00013972,2]
[351935774,1738851047284,-942.92,0.00013972,2]
[351935775,1738851047293,-275.443027,0.00013972,2]
[351935776,1738851047303,-1410.06,0.00013972,2]
[351935777,1738851047312,-500.0,0.00013972,2]
[351935778,1738851047322,-400.0,0.00013973,2]
[351935779,1738851047331,-9050.53909296,0.00013992,2]
[351935780,1738851047342,-9050.53909296,0.00013993,2]
[351935781,1738851047351,-9050.53909296,0.00013994,2]
[351935782,1738851047360,-1000.0,0.00013996,2]
[351935783,1738851047369,-420.0,0.00014003,2]
[351935784,1738851047379,-160.0,0.00014004,3]
[351935785,1738851047388,-237.99775959,0.00014009,2]
[351935786,1738851047397,-2072.28527919,0.00014009,2]
[351935787,1738851047406,-1000.0,0.00014012,2]
[351935788,1738851047415,-1000.0,0.00014023,2]
[351935789,1738851047425,-1000.0,0.00014033,2]
[351935790,1738851047434,-1000.0,0.00014036,2]
[351935791,1738851047444,-1000.0,0.0001404,2]
[351935792,1738851047453,-1000.0,0.00014063,2]
[351935793,1738851047462,-1000.0,0.00014076,2]
[351935794,1738851047472,-1000.0,0.00014084,2]
[351935795,1738851047483,-151.0,0.000141,2]
[351935796,1738851047492,-2363.1755152,0.00014103,2]
[351935797,1738851047502,-303.686,0.00014106,2]
[351935798,1738851047512,-500.0,0.00014109,2]
[351935799,1738851047521,-711.94,0.00014109,2]
[351935800,1738851047531,-500.0,0.00014109,2]
[351935801,1738851047540,-473.11195959,0.00014109,2]
[351935802,1738851047550,-151.0,0.00014109,2]
[351935803,1738851047559,-500.0,0.00014109,2]
[351935804,1738851047569,-500.0,0.00014109,2]
[351935805,1738851047579,-151.0,0.00014109,2]
[351935806,1738851047589,-755.1,0.00014109,2]
[351935807,1738851047601,-500.0,0.00014109,2]
[351935808,1738851047611,-525.19,0.00014109,2]
[351935809,1738851047621,-530.96614738,0.00014109,2]
[351935810,1738851047632,-595.88,0.00014109,2]
[351935811,1738851047642,-1512.68,0.00014109,2]
[351935812,1738851047651,-500.0,0.00014109,2]
[351935813,1738851047661,-500.0,0.00014109,2]
[351935814,1738851047671,-151.0,0.00014109,2]
[351935815,1738851047683,-151.0,0.00014109,2]
[351935816,1738851047692,-151.0,0.00014109,2]
[351935817,1738851047701,-500.0,0.00014109,2]
[351935818,1738851047711,-500.0,0.00014109,2]
[351935819,1738851047722,-500.0,0.00014109,2]
[351935820,1738851047732,-500.0,0.00014109,2]
[351935821,1738851047742,-500.0,0.00014109,2]
[351935822,1738851047752,-500.0,0.00014109,2]
[351935823,1738851047769,-868.38,0.00014109,2]
[351935824,1738851047787,-500.0,0.00014109,2]
[351935825,1738851047796,-500.0,0.00014109,2]
[351935826,1738851047806,-151.0,0.00014109,2]
[351935827,1738851047815,-151.0,0.00014109,2]
[351935828,1738851047826,-500.0,0.00014109,2]
[351935829,1738851047836,-500.0,0.00014109,2]
[351935830,1738851047847,-775.95,0.00014109,2]
[351935831,1738851047857,-614.51,0.00014109,2]
[351935832,1738851047869,-538.7,0.00014109,2]
[351935833,1738851047879,-500.0,0.00014109,2]
[351935834,1738851047889,-151.0,0.00014109,2]
[351935835,1738851047900,-500.0,0.00014109,2]
[351935836,1738851047910,-500.0,0.00014109,2]
[351935837,1738851047920,-884.55,0.00014109,2]
[351935838,1738851047930,-162.63639976,0.00014109,2]
[351935839,1738851047940,-1182.74,0.00014109,2]
[351935840,1738851047954,-500.0,0.00014109,2]
[351935841,1738851047967,-500.0,0.00014109,2]
[351935842,1738851047977,-500.0,0.00014109,2]
[351935843,1738851047986,-151.917224,0.00014109,2]
[351935844,1738851047996,-151.917224,0.00014109,2]
[351935845,1738851048006,-500.0,0.00014109,2]
[351935846,1738851048016,-500.0,0.00014109,2]
[351935847,1738851048025,-500.0,0.00014109,2]
[351935848,1738851048036,-500.0,0.00014109,2]
[351935849,1738851048047,-151.0,0.00014109,2]
[351935850,1738851048059,-151.0,0.00014109,2]
[351935851,1738851048069,-500.0,0.00014109,2]
[351935852,1738851048079,-621.75,0.00014109,2]
[351935853,1738851048090,-1597.37,0.00014109,2]
[351935854,1738851048100,-1708.57,0.00014109,2]
[351935855,1738851048112,-151.0,0.00014109,2]
[351935856,1738851048122,-151.0,0.00014109,2]
[351935857,1738851048132,-500.0,0.00014109,2]
[351935858,1738851048143,-151.0,0.00014109,2]
[351935859,1738851048154,-500.0,0.00014109,2]
[351935860,1738851048165,-500.0,0.00014109,2]
[351935861,1738851048176,-151.0,0.00014109,2]
[351935862,1738851048186,-500.0,0.00014109,2]
[351935863,1738851048197,-1027.071389,0.00014109,2]
[351935864,1738851048207,-1027.071389,0.00014109,2]
[351935865,1738851048217,-1191.99,0.00014109,2]
[351935866,1738851048228,-500.0,0.00014109,2]
[351935867,1738851048239,-787.55,0.00014109,2]
[351935868,1738851048250,-4473.78,0.00014109,2]
[351935869,1738851048261,-151.0,0.00014109,2]
[351935870,1738851048270,-961.53,0.00014109,2]
[351935871,1738851048280,-151.0,0.00014109,2]
[351935872,1738851048290,-500.0,0.00014109,2]
[351935873,1738851048300,-151.0,0.00014109,2]
[351935874,1738851048311,-1808.26,0.00014109,2]
[351935875,1738851048322,-1407.66,0.00014109,2]
[351935876,1738851048332,-796.22,0.00014109,2]
[351935877,1738851048343,-151.0,0.00014109,2]
[351935878,1738851048354,-151.0,0.00014109,2]
[351935879,1738851048364,-942.47,0.00014109,2]
[351935880,1738851048375,-637.05,0.00014109,2]
[351935881,1738851048385,-512.207558,0.00014109,2]
[351935882,1738851048396,-3347.65,0.00014109,2]
[351935883,1738851048406,-500.0,0.00014109,2]
[351935884,1738851048417,-512.207558,0.00014109,2]
[351935885,1738851048428,-1987.36,0.00014109,2]
[351935886,1738851048438,-500.0,0.00014109,2]
[351935887,1738851048448,-826.82,0.00014109,2]
[351935888,1738851048459,-500.0,0.00014109,2]
[351935889,1738851048470,-500.0,0.00014109,2]
[351935890,1738851048480,-234.389468,0.00014109,2]
[351935891,1738851048490,-833.85,0.00014109,2]
[351935892,1738851048500,-234.389468,0.00014109,2]
[351935893,1738851048510,-3687.18,0.00014109,2]
[351935894,1738851048519,-500.0,0.00014109,2]
[351935895,1738851048528,-1535.57,0.00014109,2]
[351935896,1738851048537,-922.33,0.00014109,2]
[351935897,1738851048547,-151.0,0.00014109,2]
[351935898,1738851048556,-500.0,0.00014109,2]
[351935899,1738851048565,-500.0,0.00014109,2]
[351935900,1738851048574,-666.57,0.00014109,2]
[351935901,1738851048584,-1015.56,0.00014109,2]
[351935902,1738851048594,-500.0,0.00014109,2]
[351935903,1738851048603,-575.99855087,0.00014109,2]
[351935904,1738851048613,-1287.38,0.00014109,2]
[351935905,1738851048623,-154.103974,0.00014109,2]
[351935906,1738851048633,-500.0,0.00014109,2]
[351935907,1738851048643,-154.103974,0.00014109,2]
[351935908,1738851048652,-151.0,0.00014109,2]
[351935909,1738851048662,-211.6941032,0.00014109,2]
[351935910,1738851048671,-500.0,0.00014109,2]
[351935911,1738851048681,-3126.78,0.00014109,2]
[351935912,1738851048690,-500.0,0.00014109,2]
[351935913,1738851048700,-441.5,0.00014109,2]
[351935914,1738851048709,-6963.41,0.00014109,2]
[351935915,1738851048719,-1200.01,0.00014109,2]
[351935916,1738851048730,-500.0,0.00014109,2]
[351935917,1738851048741,-151.0,0.00014109,2]
[351935918,1738851048751,-1065.19,0.00014109,2]
[351935919,1738851048762,-500.0,0.00014109,2]
[351935920,1738851048772,-151.0,0.00014109,2]
[351935921,1738851048783,-1322.58,0.00014109,2]
[351935922,1738851048794,-13982.56,0.00014109,2]
[351935923,1738851048804,-151.0,0.00014109,2]
[351935924,1738851048815,-5796.15,0.00014109,2]
[351935925,1738851048825,-581.44,0.00014109,2]
[351935926,1738851048835,-500.0,0.00014109,2]
[351935927,1738851048846,-42643.98,0.00014109,2]
[351935928,1738851048855,-500.0,0.00014109,2]
[351935929,1738851048865,-585.26779649,0.00014109,2]
[351935930,1738851048875,-1206.68,0.00014109,2]
[351935931,1738851048884,-1306.86,0.00014109,2]
[351935932,1738851048894,-1001.84,0.00014109,2]
[351935933,1738851048904,-500.0,0.00014109,2]
[351935934,1738851048914,-4363.28,0.00014109,2]
[351935935,1738851048925,-2468.47,0.00014109,2]
[351935936,1738851048934,-500.0,0.00014109,2]
[351935937,1738851048944,-206.959826,0.00014109,2]
[351935938,1738851048957,-729.89,0.00014109,2]
[351935939,1738851048968,-2320.38,0.00014109,2]
[351935940,1738851048978,-500.0,0.00014109,2]
[351935941,1738851048988,-500.0,0.00014109,2]
[351935942,1738851048998,-500.0,0.00014109,2]
[351935943,1738851049008,-1357.54,0.00014109,2]
[351935944,1738851049018,-1016.63,0.00014109,2]
[351935945,1738851049027,-500.0,0.00014109,2]
[351935946,1738851049036,-780.62,0.00014109,2]
[351935947,1738851049045,-2135.49,0.00014109,2]
[351935948,1738851049052,-17470.79,0.00014109,2]
[351935949,1738851049062,-500.0,0.00014109,2]
[351935950,1738851049071,-151.0,0.00014109,2]
[351935951,1738851049081,-500.0,0.00014109,2]
[351935952,1738851049091,-3605.2,0.00014109,2]
[351935953,1738851049101,-151.0,0.00014109,2]
[351935954,1738851049110,-500.0,0.00014109,2]
[351935955,1738851049119,-151.0,0.00014109,2]
[351935956,1738851049128,-500.0,0.00014109,2]
[351935957,1738851049136,-1602.84,0.00014109,2]
[351935958,1738851049145,-966.89,0.00014109,2]
[351935959,1738851049154,-644.09,0.00014109,2]
[351935960,1738851049163,-1755.26,0.00014109,2]
[351935961,1738851049173,-3288.75,0.00014109,2]
[351935962,1738851049182,-1867.6,0.00014109,2]
[351935963,1738851049191,-151.0,0.00014109,2]
[351935964,1738851049200,-875.81,0.00014109,2]
[351935965,1738851049209,-500.0,0.00014109,2]
[351935966,1738851049219,-793.45,0.00014109,2]
[351935967,1738851049364,-500.0,0.00014109,2]
[351935968,1738851049373,-572.16,0.00014109,2]
[351935969,1738851049383,-9267.35,0.00014109,2]
[351935970,1738851049392,-955.32,0.00014109,2]
[351935971,1738851049402,-500.0,0.00014109,2]
[351935972,1738851049412,-2160.78,0.00014109,2]
[351935973,1738851049421,-151.0,0.00014109,2]
[351935974,1738851049431,-500.0,0.00014109,2]
[351935975,1738851049440,-500.0,0.00014109,2]
[351935976,1738851049450,-1470.7,0.00014109,2]
[351935977,1738851049460,-703.94,0.00014109,2]
[351935978,1738851049470,-500.0,0.00014109,2]
[351935979,1738851049479,-275.443027,0.00014109,2]
[351935980,1738851049488,-500.0,0.00014109,2]
[351935981,1738851049497,-942.92,0.00014109,2]
[351935982,1738851049508,-275.443027,0.00014109,2]
[351935983,1738851049517,-1410.06,0.00014109,2]
[351935984,1738851049526,-586.70871007,0.00014109,2]
[351935985,1738851049533,-1000.0,0.00014116,2]
[351935986,1738851049540,-192.0,0.00014126,2]
[351935987,1738851049547,-1000.0,0.00014127,2]
[351935988,1738851049554,-1000.0,0.00014133,2]
[351935989,1738851049560,-1000.0,0.00014139,2]
[351935990,1738851049567,-397.813,0.00014158,2]
[351935991,1738851049573,-1000.0,0.00014163,2]
[351935992,1738851049580,-1000.0,0.00014186,2]
[351935993,1738851049587,-1000.0,0.00014192,2]
[351935994,1738851049595,-218.59072856,0.00014197,2]
[351935995,1738851049602,-151.0,0.00014199,2]
[351935996,1738851049610,-151.0,0.00014199,2]
[351935997,1738851049618,-151.0,0.00014199,2]
[351935998,1738851049625,-1000.0,0.00014199,2]
[351935999,1738851049632,-151.0,0.00014199,2]
[351936000,1738851049639,-1027.071389,0.00014199,2]
[351936001,1738851049647,-1027.071389,0.00014199,2]
[351936002,1738851049656,-223.86837158,0.00014199,2]
[351936003,1738851049666,-228.851831,0.00014199,2]
[351936004,1738851049675,-275.443027,0.00014199,2]
[351936005,1738851049685,-275.443027,0.00014199,2]
[351936006,1738851049694,-151066.08159273,0.000142,5]
[351936007,1738851050334,-500.0,0.00013698,2]
[351936008,1738851050343,-42.828615,0.00013698,2]
[351936040,1738851941130,-160.07,0.00010959,2]
[351936041,1738851941151,-220.69221893,0.00010959,2]
[351936046,1738852049103,-176.65,0.00010959,2]
[351936047,1738852049126,-239.02,0.00010959,2]
[351936048,1738852049148,-199.18,0.00010959,2]
[351936049,1738852049170,-165.99,0.00010959,2]
[351936050,1738852049192,-829.95,0.00010959,2]
[351936051,1738852049214,-300.0,0.00012169,2]
[351936052,1738852049237,-4801.14473051,0.0001217,2]
[351936054,1738852147101,-300.0,0.00012169,2]
[351936055,1738852147126,-20098.85526949,0.0001217,2]
[351936056,1738852147147,-1376.4081157,0.00012206,2]
[351936057,1738852147169,-507.25263423,0.00012485,2]
[351936058,1738852151110,-8.88053707,0.00012485,2]
[351936059,1738852151139,-197.33131097,0.00012539,2]
[351936060,1738852151162,-195.92259246,0.00012559,2]
[351936085,1738852232459,-54.07740754,0.00012559,2]
[351936086,1738852232469,-700.0,0.0001315,2]
[351936087,1738852232479,-751.2467911,0.000133,2]
[351936088,1738852232488,-309.0698992,0.00013378,2]
[351936089,1738852232498,-500.0,0.00013673,2]
[351936090,1738852232507,-7438.69753278,0.00013676,2]
[351936091,1738852232517,-151.0,0.0001369,2]
[351936092,1738852232526,-300.0,0.00013696,2]
[351936093,1738852232536,-499.99999999,0.00013697,2]
[351936094,1738852232545,-164.15450982,0.00013697,2]
[351936095,1738852232555,-500.0,0.00013697,2]
[351936096,1738852232564,-500.0,0.00013697,2]
[351936097,1738852232573,-500.0,0.00013697,2]
[351936098,1738852232583,-500.0,0.00013697,2]
[351936099,1738852232592,-500.0,0.00013697,2]
[351936100,1738852232602,-500.0,0.00013697,2]
[351936101,1738852232612,-500.0,0.00013697,2]
[351936102,1738852232622,-500.0,0.00013697,2]
[351936103,1738852232631,-500.0,0.00013697,2]
[351936104,1738852232641,-500.0,0.00013697,2]
[351936105,1738852232650,-500.0,0.00013697,2]
[351936106,1738852232659,-500.0,0.00013697,2]
[351936107,1738852232668,-500.0,0.00013697,2]
[351936108,1738852232678,-500.0,0.00013697,2]
[351936109,1738852232687,-500.0,0.00013697,2]
[351936110,1738852232700,-500.0,0.00013697,2]
[351936111,1738852232710,-500.0,0.00013697,2]
[351936112,1738852232719,-500.0,0.00013697,2]